bitfinex-derivatives/quotes_BNBF0:USTF0_20260110
["timestamp","ask_amount","ask_price","bid_price","bid_amount"]
[1768046915288,0.19316753,901.09,900.26,0.83293441]
[1768046916290,0.19316753,901.09,900.27,0.83293441]
[1768046917291,0.19316753,901.09,900.29,0.83293441]
[1768046918395,0.19316753,901.09,900.3,0.83293441]
[1768046919290,0.19316753,901.09,900.31,0.83293441]
[1768046920392,0.19316753,901.09,900.32,0.83293441]
[1768046922496,0.19316753,901.09,900.33,0.83293441]
[1768046926296,0.19316753,901.09,900.34,0.83293441]
[1768046928292,0.19316753,901.09,900.35,0.83293441]
[1768046939308,0.19316753,901.09,900.22,2.579]
[1768046939309,0.19316753,901.09,900.34,0.83293441]
[1768046940910,0.19316753,901.09,900.33,0.83293441]
[1768046942109,0.19316753,901.09,900.32,0.83293441]
[1768046957727,0.19316753,901.09,900.31,0.83293441]
[1768046967732,0.19316753,901.09,900.3,0.83293441]
[1768046969139,0.19316753,901.09,900.31,2.096]
[1768046993159,0.19316753,901.09,900.31,2.92893441]
[1768047002061,0.19316753,901.09,900.33,0.83293441]
[1768047002765,0.19316753,901.09,900.35,0.83293441]
[1768047005164,0.19316753,901.09,900.34,0.83293441]
[1768047009372,0.19316753,901.09,900.32,0.83293441]
[1768047010067,0.19316753,901.09,900.31,2.92893441]
[1768047011272,0.19316753,901.09,900.31,0.83293441]
[1768047012973,0.19316753,901.09,900.28,0.83293441]
[1768047014474,0.19316753,901.09,900.29,2.213]
[1768047039597,0.19316753,901.09,900.11,0.83293441]
[1768047042099,0.19316753,901.09,900.12,1.77]
[1768047044298,0.19316753,901.09,900.12,2.60293441]
[1768047045102,0.19316753,901.09,900.13,0.83293441]
[1768047045402,0.19308929,901.22,900.14,0.83293441]
[1768047046102,0.19308929,901.22,900.13,0.83293441]
[1768047046498,0.19308929,901.22,900.18,0.83293441]
[1768047046702,0.19308929,901.22,900.21,0.83293441]
[1768047048202,0.19308929,901.22,900.2,0.83293441]
[1768047049003,0.19308929,901.22,900.19,0.83293441]
[1768047049208,0.19308929,901.22,900.18,0.83293441]
[1768047049612,0.19308929,901.22,900.24,0.83293441]
[1768047050213,0.19308929,901.22,900.23,0.83293441]
[1768047052516,0.19308929,901.22,900.12,1.77]
[1768047052717,0.19308929,901.22,900.29,0.82745926]
[1768047053212,0.19308929,901.22,900.28,0.82745926]
[1768047055417,0.19308929,901.22,900.27,0.82745926]
[1768047057113,0.19308929,901.22,900.26,0.82745926]
[1768047059118,0.19308929,901.22,900.25,0.82745926]
[1768047064121,0.19308929,901.22,900.26,0.82745926]
[1768047066320,0.19308929,901.22,900.27,0.82745926]
[1768047067120,0.19308929,901.22,900.28,0.82745926]
[1768047068223,0.19308929,901.22,900.29,0.82745926]
[1768047069121,0.19308929,901.22,900.3,0.82745926]
[1768047070221,0.19308929,901.22,900.31,0.82745926]
[1768047071226,0.19308929,901.22,900.32,0.82745926]
[1768047072426,0.19308929,901.22,900.33,0.82745926]
[1768047073128,0.19308929,901.22,900.35,0.82745926]
[1768047074124,0.19308929,901.22,900.37,0.82745926]
[1768047075126,0.19308929,901.22,900.39,0.82745926]
[1768047076431,0.19308929,901.22,900.42,0.82745926]
[1768047077128,0.19308929,901.22,900.46,0.82745926]
[1768047080938,0.19308929,901.22,900.26,0.82745926]
[1768047081139,0.19308929,901.22,900.25,0.82745926]
[1768047082634,0.19308929,901.22,900.23,0.82745926]
[1768047084142,0.19308929,901.22,900.22,0.82745926]
[1768047087842,0.19308929,901.22,900.24,0.82745926]
[1768047088042,0.19308929,901.22,900.26,0.82745926]
[1768047088337,0.19308929,901.22,900.3,0.82745926]
[1768047088537,0.19308929,901.22,900.32,0.82745926]
[1768047091341,0.19308929,901.22,900.33,0.82745926]
[1768047092141,0.19308929,901.22,900.32,0.82745926]
[1768047092538,0.19308929,901.22,900.33,0.82745926]
[1768047097050,0.19308929,901.22,900.34,0.82745926]
[1768047107053,0.19308929,901.22,900.35,0.82745926]
[1768047113254,0.19308929,901.22,900.36,0.82745926]
[1768047117155,0.19308929,901.22,900.37,0.82745926]
[1768047118358,0.19308929,901.22,900.14,0.82745926]
[1768047118758,0.19308929,901.22,900.12,0.82745926]
[1768047121658,0.19308929,901.22,900.11,0.82745926]
[1768047123459,0.19308929,901.22,900.1,0.82745926]
[1768047124160,0.19308929,901.22,900.11,0.82745926]
[1768047124461,0.19308929,901.22,900.1,0.82745926]
[1768047125258,0.19308929,901.22,900.16,0.82745926]
[1768047126164,0.19308929,901.22,900.15,0.82745926]
[1768047129364,0.19308929,901.22,900.14,0.82745926]
[1768047132768,0.19308929,901.22,900.08,0.82745926]
[1768047135366,0.19308929,901.22,900.07,0.82745926]
[1768047139472,0.19308929,901.22,900.06,0.82745926]
[1768047148179,0.19308929,901.22,900.07,0.82745926]
[1768047148380,0.19308929,901.22,900.07,4.92962396]
[1768047151781,0.19308929,901.22,900.07,4.1021647]
[1768047153180,0.19308929,901.22,900.07,4.92962396]
[1768047155588,0.19308929,901.22,900.07,4.1021647]
[1768047159094,0.19308929,901.22,900.08,1.79]
[1768047215141,0.19308929,901.22,900.07,4.92962396]
[1768047218336,0.19308929,901.22,900.08,1.739]
[1768047245463,2.77040726,901.77,900.08,1.739]
[1768047245661,0.19316056,900.94,900.08,1.739]
[1768047245965,2.88157424,901.25,900.08,1.739]
[1768047246260,0.19316056,900.9,900.08,1.739]
[1768047257472,0.19316056,900.9,900.07,4.93615206]
[1768047260674,0.19316056,900.9,900.08,1.79]
[1768047308618,0.19316056,900.9,899.82,0.83398736]
[1768047309216,0.19316056,900.9,899.81,0.83398736]
[1768047310422,0.19316056,900.9,899.8,0.83398736]
[1768047312223,0.19316056,900.9,899.79,0.83398736]
[1768047312523,0.19316056,900.9,899.81,2.102]
[1768047319823,2.88157424,901.25,899.81,2.102]
[1768047320429,0.1932233,900.9,899.81,2.102]
[1768047329439,0.1932233,900.9,899.76,0.83398736]
[1768047329735,2.88157424,901.25,899.76,0.83398736]
[1768047330136,0.19322599,900.88,899.76,0.83398736]
[1768047333140,0.19322599,900.88,899.77,0.83398736]
[1768047333341,0.19322599,900.88,899.77,2.41998736]
[1768047337241,0.19322599,900.88,899.78,0.83398736]
[1768047339744,0.19322599,900.88,899.78,0.83229074]
[1768047340239,0.19322599,900.88,899.79,0.83229074]
[1768047342144,0.19322599,900.88,899.8,0.83229074]
[1768047342740,0.19322599,900.88,899.8,4.96831071]
[1768047343143,0.19322599,900.88,899.81,0.83229074]
[1768047344240,0.19322599,900.88,899.82,0.83229074]
[1768047346445,0.19322599,900.88,899.83,0.83229074]
[1768047347246,0.19322599,900.88,899.84,0.83229074]
[1768047348347,0.19322599,900.88,899.85,0.83229074]
[1768047350347,0.19322599,900.88,899.86,0.83229074]
[1768047352246,0.19322599,900.88,899.87,0.83229074]
[1768047362661,0.19322599,900.88,899.91,0.83229074]
[1768047362862,0.19322599,900.88,900.01,0.83229074]
[1768047363162,0.19322599,900.88,899.99,0.83229074]
[1768047364266,0.19322599,900.88,899.98,0.83229074]
[1768047365167,0.19322599,900.88,899.81,1.11121118]
[1768047365168,0.19322599,900.88,899.97,0.83229074]
[1768047366268,0.19322599,900.88,899.96,0.83229074]
[1768047367772,0.19322599,900.88,899.94,0.83229074]
[1768047367965,0.19322599,900.88,899.9,0.83229074]
[1768047368872,0.19322599,900.88,899.89,0.83229074]
[1768047369067,0.19322599,900.88,899.87,0.83229074]
[1768047371372,0.19322599,900.88,899.93,0.83229074]
[1768047379577,0.19322599,900.88,899.64,0.83229074]
[1768047380179,0.19322599,900.88,899.63,0.83229074]
[1768047380380,0.19322599,900.88,899.65,0.83229074]
[1768047380579,0.19322599,900.88,899.73,0.83229074]
[1768047380875,0.19322599,900.88,899.85,0.83229074]
[1768047381276,0.19322599,900.88,899.86,2.281]
[1768047382981,0.19322599,900.88,899.86,3.11329074]
[1768047383282,0.19322599,900.88,899.9,0.83229074]
[1768047383484,0.19322599,900.88,899.91,0.83229074]
[1768047383980,2.77040726,901.77,899.91,0.83229074]
[1768047383981,2.77040726,901.78,899.91,0.83229074]
[1768047384478,2.77040726,901.78,899.96,0.83229074]
[1768047384779,2.77040726,901.83,899.96,0.83229074]
[1768047387981,2.77040726,901.85,899.98,0.83229074]
[1768047388180,2.77040726,901.85,900.04,0.83229074]
[1768047388484,2.77040726,901.92,900.04,0.83229074]
[1768047389382,2.77040726,901.92,900.03,0.83229074]
[1768047389883,2.77040726,901.92,899.98,0.83229074]
[1768047390184,2.77040726,901.87,899.98,0.83229074]
[1768047390487,2.77040726,901.88,899.98,0.83229074]
[1768047390986,5.65514919,901.88,899.98,0.83229074]
[1768047391186,5.65514919,901.88,899.97,0.83229074]
[1768047393284,5.65514919,901.88,899.95,0.83229074]
[1768047393586,2.77040726,901.87,899.95,0.83229074]
[1768047393981,2.77040726,901.87,899.96,0.83229074]
[1768047394287,2.77040726,901.87,899.95,0.83229074]
[1768047394682,5.65514919,901.88,899.95,0.83229074]
[1768047395587,0.19315842,901.4,899.95,0.83229074]
[1768047397487,0.19315842,901.4,899.93,0.83229074]
[1768047398187,0.19315842,901.4,899.92,0.83229074]
[1768047398482,0.19315842,901.4,899.9,0.83229074]
[1768047399988,0.19315842,901.4,899.92,0.83229074]
[1768047401384,0.19315842,901.4,899.94,0.83229074]
[1768047406393,0.19315842,901.4,899.95,0.83229074]
[1768047409793,0.19315842,901.4,899.99,0.83229074]
[1768047410597,0.19315842,901.4,900.0,0.83229074]
[1768047414799,0.19315842,901.4,900.03,0.83229074]
[1768047419807,0.19315842,901.4,900.0,0.83229074]
[1768047424316,0.19315842,901.4,900.01,0.83229074]
[1768047425323,0.19315842,901.4,900.04,0.83229074]
[1768047426119,0.19315842,901.4,900.05,0.83229074]
[1768047427323,0.19315842,901.4,900.06,0.83229074]
[1768047429325,0.19315842,901.4,900.07,0.83229074]
[1768047429821,0.19315842,901.4,900.11,0.83229074]
[1768047432826,0.19315842,901.4,900.19,0.83229074]
[1768047433030,0.19315842,901.4,900.2,0.83229074]
[1768047433324,0.19315842,901.4,900.19,0.83229074]
[1768047435333,0.19315842,901.4,900.18,0.83229074]
[1768047437233,0.19315842,901.4,900.17,0.83229074]
[1768047439833,0.19315842,901.4,900.16,0.83229074]
[1768047441231,0.19315842,901.4,900.22,0.83229074]
[1768047441438,0.19315842,901.4,900.39,0.83229074]
[1768047441936,0.19315842,901.4,900.49,0.83229074]
[1768047442132,0.19315842,901.4,900.51,0.83229074]
[1768047442336,0.19315842,901.4,900.47,0.83229074]
[1768047442534,0.19315842,901.4,900.54,0.83229074]
[1768047443036,0.19315842,901.4,900.52,0.83229074]
[1768047443332,0.19315842,901.4,900.49,0.83229074]
[1768047444237,0.19315842,901.4,900.46,0.83229074]
[1768047445334,0.19315842,901.4,900.44,0.83229074]
[1768047446338,0.19315842,901.4,900.43,0.83229074]
[1768047447339,0.19315842,901.4,900.41,0.83229074]
[1768047447941,0.19315842,901.4,900.43,0.83229074]
[1768047448437,0.19315842,901.4,900.42,0.83229074]
[1768047448941,0.19315842,901.4,900.45,0.83229074]
[1768047449341,0.19315842,901.4,900.44,0.83229074]
[1768047450441,0.19315842,901.4,900.43,0.83229074]
[1768047451236,0.19315842,901.4,900.27,1.11121118]
[1768047451237,0.19315842,901.4,900.42,0.83229074]
[1768047452439,0.19315842,901.4,900.25,1.11121118]
[1768047452440,0.19315842,901.4,900.41,0.83229074]
[1768047453339,0.19315842,901.4,900.4,0.83229074]
[1768047456344,0.19315842,901.4,900.39,0.83229074]
[1768047456842,0.19315842,901.4,900.42,0.83229074]
[1768047457146,0.19315842,901.4,900.43,0.83229074]
[1768047457549,0.19315842,901.4,900.45,0.83229074]
[1768047467258,0.19315842,901.4,900.46,0.83229074]
[1768047467860,2.88474193,901.88,900.46,0.83229074]
[1768047468054,0.19307108,901.5,900.46,0.83229074]
[1768047470260,0.19307108,901.5,900.47,0.83229074]
[1768047472358,0.19307108,901.5,900.48,0.83229074]
[1768047473262,0.19307108,901.5,900.49,0.83229074]
[1768047474263,0.19307108,901.5,900.5,0.83229074]
[1768047475159,0.19307108,901.5,900.49,0.83229074]
[1768047475364,0.19307108,901.5,900.5,0.83229074]
[1768047475864,0.19307108,901.5,900.35,0.83229074]
[1768047476063,0.19307108,901.5,900.33,0.83229074]
[1768047476365,0.19307108,901.5,900.35,0.83229074]
[1768047477261,0.19307108,901.5,900.36,0.83229074]
[1768047477766,0.19307108,901.5,900.34,0.83229074]
[1768047478367,0.19307108,901.5,900.35,0.83229074]
[1768047479164,0.19307108,901.5,900.34,0.83229074]
[1768047479368,0.19307108,901.5,900.35,0.83229074]
[1768047480372,0.19307108,901.5,899.65,4.17494455]
[1768047480373,0.19307108,901.5,900.36,0.83229074]
[1768047481268,0.19307108,901.5,900.37,2.066]
[1768047481470,0.19307108,901.5,900.38,0.83229074]
[1768047482376,0.19307108,901.5,900.39,0.83229074]
[1768047483278,0.19307108,901.5,900.4,0.83229074]
[1768047484379,0.19307108,901.5,900.42,0.83229074]
[1768047485376,0.19307108,901.5,900.44,0.83229074]
[1768047486374,0.19307108,901.5,900.46,0.83229074]
[1768047488377,0.19307108,901.5,900.45,0.83229074]
[1768047489481,0.19307108,901.5,900.44,0.83229074]
[1768047490777,0.19307108,901.5,900.41,0.83229074]
[1768047492481,0.19307108,901.5,900.4,0.83229074]
[1768047495278,0.19307108,901.5,900.39,0.83229074]
[1768047497780,0.19307108,901.5,900.36,0.83229074]
[1768047498184,0.19307108,901.5,900.4,1.484]
[1768047526102,0.19307108,901.5,900.37,0.83229074]
[1768047526702,0.19307108,901.5,900.38,0.83229074]
[1768047528810,0.19307108,901.5,900.39,1.692]
[1768047530406,0.19307108,901.5,900.4,0.83259637]
[1768047532412,0.19307108,901.5,900.41,0.83259637]
[1768047535508,0.19307108,901.5,900.42,0.83259637]
[1768047539316,0.19307108,901.5,900.43,0.83259637]
[1768047540724,0.19307108,901.5,900.41,0.83259637]
[1768047542420,0.19307108,901.5,900.42,0.83259637]
[1768047548025,0.19307108,901.5,900.37,0.83259637]
[1768047549428,0.19307108,901.5,900.36,0.83259637]
[1768047550329,0.19307108,901.5,900.37,1.79]
[1768047594451,0.19307108,901.5,900.27,4.63943936]
[1768047596952,0.19307108,901.5,900.28,2.147]
[1768047642095,0.19307108,901.5,899.74,0.83259637]
[1768047643398,0.19307108,901.5,899.81,0.83259637]
[1768047644996,0.19307108,901.5,899.82,2.032]
[1768047648796,0.19307108,901.5,899.84,0.83259637]
[1768047649998,0.19307108,901.5,899.82,2.86459637]
[1768047651200,0.19307108,901.5,899.83,0.83259637]
[1768047656106,0.19307108,901.5,899.82,2.032]
[1768047667722,2.96347834,901.5,899.82,2.032]
[1768047668124,2.77040726,901.5,899.82,2.032]
[1768047668325,0.19323403,901.09,899.82,2.032]
[1768047668525,3.02616393,901.09,899.82,2.032]
[1768047682836,3.02616393,901.09,899.67,0.83259637]
[1768047689742,3.02616393,901.09,899.68,0.83259637]
[1768047690041,3.02616393,901.09,899.68,5.01773039]
[1768047692342,3.02616393,901.09,899.69,0.83259637]
[1768047696150,3.02616393,901.09,899.7,0.83259637]
[1768047698154,3.02616393,901.09,899.71,0.83259637]
[1768047699055,3.02616393,901.09,899.72,0.83259637]
[1768047699956,3.02616393,901.09,899.69,0.83259637]
[1768047700156,3.02616393,901.09,899.7,0.83259637]
[1768047700957,3.02616393,901.09,899.71,0.83259637]
[1768047701953,3.02616393,901.09,899.72,0.83259637]
[1768047703254,3.02616393,901.09,899.73,0.83259637]
[1768047707359,3.02616393,901.09,899.74,0.83259637]
[1768047709258,3.02616393,901.09,899.75,0.83259637]
[1768047709961,3.02616393,901.09,899.77,0.83259637]
[1768047710359,3.02616393,901.09,899.78,0.83259637]
[1768047711261,3.02616393,901.09,899.79,0.83259637]
[1768047713463,3.02616393,901.09,899.78,0.83259637]
[1768047713664,3.02616393,901.09,899.79,0.83259637]
[1768047719467,3.02616393,901.09,899.82,0.83259637]
[1768047719970,3.02616393,901.09,899.81,0.83259637]
[1768047722272,3.02616393,901.09,899.8,0.83259637]
[1768047726072,3.02616393,901.09,899.87,0.83259637]
[1768047726276,3.02616393,901.09,899.86,0.83259637]
[1768047728275,3.02616393,901.09,899.85,0.83259637]
[1768047729877,3.02616393,901.09,899.86,0.83259637]
[1768047732277,3.02616393,901.09,899.85,0.83259637]
[1768047734274,3.02616393,901.09,899.87,0.83259637]
[1768047735375,3.02616393,901.09,899.86,0.83259637]
[1768047736082,3.02616393,901.09,900.07,0.83259637]
[1768047736283,3.02616393,901.09,900.1,0.83259637]
[1768047736577,3.02616393,901.09,900.18,0.83259637]
[1768047736782,3.02616393,901.09,900.19,0.83259637]
[1768047736983,3.02616393,901.09,900.26,0.83259637]
[1768047737177,3.02616393,901.09,899.68,4.18513402]
[1768047737178,3.02616393,901.09,900.22,0.83259637]
[1768047737585,3.02616393,901.09,900.21,0.83259637]
[1768047737884,3.02616393,901.09,900.15,0.83259637]
[1768047738280,3.02616393,901.09,900.13,0.83259637]
[1768047738782,3.02616393,901.09,900.11,0.83259637]
[1768047739491,3.02616393,901.09,900.09,0.83259637]
[1768047739990,3.02616393,901.09,900.06,0.83259637]
[1768047740389,3.02616393,901.09,900.05,0.83259637]
[1768047741292,3.02616393,901.09,900.03,0.83259637]
[1768047741893,3.02616393,901.09,899.98,0.83259637]
[1768047742092,3.02616393,901.09,899.88,0.83259637]
[1768047742696,3.02616393,901.09,899.86,0.83259637]
[1768047742895,3.02616393,901.09,899.88,0.83259637]
[1768047746296,3.02616393,901.09,899.87,0.83259637]
[1768047749998,3.02616393,901.09,899.9,0.83259637]
[1768047756405,3.02616393,901.09,899.91,0.83259637]
[1768047759302,3.02616393,901.09,899.92,0.83259637]
[1768047761905,3.02616393,901.09,899.91,0.83259637]
[1768047762504,3.02616393,901.09,899.92,0.83259637]
[1768047764309,3.02616393,901.09,899.93,0.83259637]
[1768047765509,3.02616393,901.09,899.94,2.282]
[1768047766607,3.02616393,901.09,899.94,3.11459637]
[1768047768312,3.02616393,901.09,899.95,0.83259637]
[1768047770316,3.02616393,901.09,899.96,0.83259637]
[1768047771316,3.02616393,901.09,899.97,0.83259637]
[1768047773218,3.02616393,901.09,899.98,0.83259637]
[1768047775316,3.02616393,901.09,899.99,0.83259637]
[1768047776217,3.02616393,901.09,900.0,0.83259637]
[1768047777122,3.02616393,901.09,900.01,0.83259637]
[1768047777317,3.02616393,901.09,900.02,0.83259637]
[1768047777718,3.02616393,901.09,899.94,2.282]
[1768047777719,3.02616393,901.09,900.04,0.83259637]
[1768047778222,3.02616393,901.09,900.05,0.83259637]
[1768047778817,3.02616393,901.09,900.07,0.83259637]
[1768047779318,3.02616393,901.09,900.08,0.83259637]
[1768047779623,3.02616393,901.09,900.07,0.83259637]
[1768047779823,3.02616393,901.09,900.08,0.83259637]
[1768047780322,3.02616393,901.09,899.94,2.282]
[1768047780323,3.02616393,901.09,900.09,0.83259637]
[1768047781227,3.02616393,901.09,900.08,0.83259637]
[1768047781523,3.02616393,901.09,900.09,0.83259637]
[1768047782022,3.02616393,901.09,900.07,0.83259637]
[1768047782228,3.02616393,901.09,900.08,0.83259637]
[1768047782424,3.02616393,901.09,900.08,0.83280678]
[1768047783327,3.02616393,901.09,900.09,0.83280678]
[1768047785225,3.02616393,901.09,900.1,0.83280678]
[1768047786324,3.02616393,901.09,900.12,0.83280678]
[1768047789032,0.19323403,901.09,900.12,0.83280678]
[1768047790027,0.19323403,901.09,900.11,0.83280678]
[1768047792732,0.19323403,901.09,900.09,0.83280678]
[1768047793432,0.19323403,901.09,900.1,0.83280678]
[1768047794235,0.19323403,901.09,900.09,0.83280678]
[1768047794434,0.19323403,901.09,900.1,0.83280678]
[1768047810142,0.19323403,901.09,900.06,0.83280678]
[1768047812742,0.19323403,901.09,900.07,2.23]
[1768047842768,0.19323403,901.09,900.0,4.82896477]
[1768047845974,0.19323403,901.09,900.01,1.574]
[1768047864983,0.19323403,901.09,900.0,4.82896477]
[1768047868491,2.77040726,901.7,900.0,4.82896477]
[1768047868786,0.19319112,900.82,900.0,4.82896477]
[1768047868990,3.29478405,901.0,900.01,1.589]
[1768047895913,3.29478405,901.0,900.07,0.83357091]
[1768047896217,3.29478405,901.0,900.14,0.83357091]
[1768047897318,3.29478405,901.0,900.12,0.83357091]
[1768047898214,3.29478405,901.0,900.11,0.83357091]
[1768047899217,3.29478405,901.0,900.09,0.83357091]
[1768047900916,3.29478405,901.0,900.08,0.83357091]
[1768047901522,3.29478405,901.0,900.07,0.83357091]
[1768047902121,3.29478405,901.0,900.05,0.83357091]
[1768047902321,3.29478405,901.0,900.01,1.589]
[1768047918931,3.29478405,901.0,900.0,4.82896477]
[1768047921929,3.29478405,901.0,900.01,1.78]
[1768047932233,3.29478405,901.0,900.01,2.61148416]
[1768047934338,3.29478405,901.0,900.02,0.83148416]
[1768047936241,3.29478405,901.0,900.03,0.83148416]
[1768047937341,3.29478405,901.0,900.04,0.83148416]
[1768047939241,3.29478405,901.0,900.05,0.83148416]
[1768047939639,3.29478405,901.0,900.06,0.83148416]
[1768047940244,3.29478405,901.0,900.07,0.83148416]
[1768047942246,3.29478405,901.0,900.08,0.83148416]
[1768047944250,3.29478405,901.0,900.09,0.83148416]
[1768047948350,3.29478405,901.0,900.1,0.83148416]
[1768047957164,3.29478405,901.0,900.1,5.99069811]
[1768047958363,3.29478405,901.0,900.11,0.83148416]
[1768047960166,3.29478405,901.0,900.12,1.569]
[1768047989093,0.19319112,901.28,900.12,1.569]
[1768047996093,0.19319112,901.28,900.1,5.15921395]
[1768048034232,0.19319112,901.28,900.11,1.953]
[1768048069167,2.77040726,901.65,900.11,1.953]
[1768048069568,0.19317396,900.99,900.11,1.953]
[1768048069867,3.44643646,901.02,900.11,1.953]
[1768048070070,0.19317396,900.83,900.11,1.953]
[1768048092278,0.19317396,900.83,899.91,0.83387121]
[1768048092775,0.19317396,900.83,899.9,0.83387121]
[1768048094375,0.19317396,900.83,899.89,0.83387121]
[1768048096281,0.19317396,900.83,899.9,2.311]
[1768048097976,0.19317396,900.83,899.9,7.01983623]
[1768048109294,0.19317396,900.83,899.9,4.70883623]
[1768048113595,0.19317396,900.83,899.91,2.258]
[1768048143617,0.19317396,900.83,899.9,4.70883623]
[1768048144319,0.19317396,900.83,899.9,5.54270744]
[1768048147624,0.19317396,900.83,899.91,1.994]
[1768048153132,0.19317396,900.83,899.99,0.83387121]
[1768048153429,0.19317396,900.83,900.0,0.83387121]
[1768048154528,0.19317396,900.83,899.99,0.83387121]
[1768048155331,0.19317396,900.83,899.98,0.83387121]
[1768048156331,0.19317396,900.83,899.97,0.83387121]
[1768048156829,0.19317396,900.83,899.96,0.83387121]
[1768048157331,0.19317396,900.83,899.95,0.83387121]
[1768048161334,0.19317396,900.83,899.94,0.83387121]
[1768048162836,0.19317396,900.83,899.95,2.336]
[1768048173750,0.19317396,900.83,899.9,4.70883623]
[1768048176852,0.19317396,900.83,899.91,1.699]
[1768048197472,0.19317396,900.83,899.91,2.53287121]
[1768048205376,0.19317396,900.83,899.92,0.83387121]
[1768048206980,0.19317396,900.83,899.92,0.83364362]
[1768048211384,0.19317396,900.83,899.93,0.83364362]
[1768048213383,0.19317396,900.83,899.94,0.83364362]
[1768048231598,0.19317396,900.83,899.92,0.83364362]
[1768048232299,0.19317396,900.83,899.91,0.83364362]
[1768048232699,0.19317396,900.83,899.75,1.11121118]
[1768048232700,0.19317396,900.83,899.88,0.83364362]
[1768048233295,0.19317396,900.83,899.89,2.723]
[1768048234000,0.19317396,900.83,899.89,6.95543949]
[1768048269930,2.77040726,901.61,899.89,6.95543949]
[1768048270234,0.19320828,900.64,899.89,6.95543949]
[1768048280343,0.19320828,900.64,899.89,4.23243949]
[1768048285345,2.92737727,901.03,899.89,4.23243949]
[1768048285546,0.19322706,900.76,899.89,4.23243949]
[1768048310264,2.92737727,901.03,899.95,0.8333396]
[1768048310568,0.19321579,900.87,899.93,0.8333396]
[1768048312371,0.19321579,900.87,899.92,0.8333396]
[1768048314372,0.19321579,900.87,899.91,0.8333396]
[1768048319281,0.19321579,900.87,899.9,0.8333396]
[1768048320275,0.19321579,900.87,899.89,5.06577909]
[1768048320677,0.19321579,900.87,899.89,4.23243949]
[1768048341590,0.19321579,900.87,899.9,2.277]
[1768048355502,0.19321579,900.87,899.58,0.8333396]
[1768048357302,0.19321579,900.87,899.59,0.8333396]
[1768048359005,0.19321579,900.87,899.6,2.488]
[1768048360312,0.19321579,900.87,899.61,0.8333396]
[1768048361315,0.19321579,900.87,899.62,0.8333396]
[1768048363312,0.19321579,900.87,899.63,0.8333396]
[1768048364317,0.19321579,900.87,899.64,0.8333396]
[1768048366317,0.19321579,900.87,899.65,0.8333396]
[1768048367417,0.19321579,900.87,899.66,0.8333396]
[1768048370321,0.19321579,900.87,899.67,0.8333396]
[1768048370717,0.19321579,900.87,899.61,0.8333396]
[1768048371419,0.19321579,900.87,899.6,3.3213396]
[1768048371618,0.19321579,900.87,899.61,0.8333396]
[1768048373324,0.19321579,900.87,899.6,3.3213396]
[1768048375523,0.19321579,900.87,899.6,2.488]
[1768048375721,0.19321579,900.87,899.6,3.3216871]
[1768048379930,0.19321579,900.87,899.6,2.488]
[1768048399140,0.19321579,900.87,899.49,0.83360964]
[1768048400344,0.19321579,900.87,899.52,0.83360964]
[1768048402344,0.19321579,900.87,899.53,2.236]
[1768048408346,0.19321579,900.87,899.53,3.06960964]
[1768048412455,0.19321579,900.87,899.54,0.83360964]
[1768048414254,0.19321579,900.87,899.55,0.83360964]
[1768048417258,0.19321579,900.87,899.56,0.83360964]
[1768048418454,0.19321579,900.87,899.57,0.83360964]
[1768048422761,0.19321579,900.87,899.55,0.83360964]
[1768048427962,0.19321579,900.87,899.53,2.236]
[1768048427963,0.19321579,900.87,899.61,0.83360964]
[1768048428161,0.19321579,900.87,899.6,0.83360964]
[1768048430969,0.19321579,900.87,899.61,0.83360964]
[1768048431268,0.19321579,900.87,899.65,0.83360964]
[1768048431870,0.19321579,900.87,899.79,0.83360964]
[1768048432067,0.19321579,900.87,899.53,2.236]
[1768048432068,0.19321579,900.87,899.8,0.83360964]
[1768048432269,0.19321579,900.87,899.77,0.83360964]
[1768048433271,0.19321579,900.87,899.75,0.83360964]
[1768048434470,0.19321579,900.87,899.74,0.83360964]
[1768048435272,0.19321579,900.87,899.73,0.83360964]
[1768048436268,0.19321579,900.87,899.72,0.83360964]
[1768048437373,0.19321579,900.87,899.71,0.83360964]
[1768048438372,0.19321579,900.87,899.7,0.83360964]
[1768048440372,0.19321579,900.87,899.68,0.83360964]
[1768048441376,0.19321579,900.87,899.67,0.83360964]
[1768048443278,0.19321579,900.87,899.66,0.83360964]
[1768048443776,0.19321579,900.87,899.53,2.236]
[1768048444075,0.19321579,900.87,899.66,0.83101511]
[1768048446380,0.19321579,900.87,899.65,0.83101511]
[1768048450385,0.19321579,900.87,899.67,0.83101511]
[1768048456888,0.19321579,900.87,899.68,2.276]
[1768048459187,0.19321579,900.87,899.68,3.10701511]
[1768048462192,0.19321579,900.87,899.69,0.83101511]
[1768048465289,0.19321579,900.87,899.7,0.83101511]
[1768048467292,0.19321579,900.87,899.71,0.83101511]
[1768048468197,0.19321579,900.87,899.72,0.83101511]
[1768048468396,0.19321579,900.87,899.77,0.83101511]
[1768048468700,0.19321579,900.87,899.77,4.99670065]
[1768048470197,0.19321579,900.87,899.78,0.83101511]
[1768048471299,0.19321579,900.87,899.79,2.67701511]
[1768048472198,0.19321579,900.87,899.8,0.83101511]
[1768048473300,0.19321579,900.87,899.81,0.83101511]